Cogmind - Beta 13 @@@ ROGUE MODE // 2024.06.13 @ 00:58:23 Player: Xintrosi Result: Destroyed by G-34 Mercenary with Small Laser Performance ------------- Evolutions (0) 0 Regions Visited (2) 400 Robots Destroyed (28) 140 Value Destroyed (638) 638 Prototype IDs (2) 40 Alien Tech Used (0) 0 Bonus (0) 0 TOTAL SCORE: 1218 Bonus ------- None Cogmind --------- Core Integrity 0/250 Matter 300/300 Energy 160/160 System Corruption 0% Temperature Cool (6) Movement Rolling (90) Location -10/Mines Parts ------- > --- POWER (1) -------- Light Nuclear Core > --- PROPULSION (2) --- Wheel Compact Wheel > --- UTILITY (2) ------ Medium Storage Unit Light Armor Plating > --- WEAPON (2) ------- Improved Light Cannon Improved Light Cannon > --- INVENTORY (10) --- Light Ion Engine Light Nuclear Core Light Treads High-capacity Matter Pod (200) Structural Scanner Transport Network Coupler Light Armor Plating Improved Light Cannon Improved Light Cannon Mining Laser Peak State ------------ > --- POWER ------------ Light Ion Engine > --- PROPULSION ------- Light Treads Wheel > --- UTILITY ---------- Medium Storage Unit Hacking Suite > --- WEAPON ----------- Improved Light Cannon Improved Light Cannon > --- INVENTORY -------- Light Nuclear Core Light Treads Large Matter Pod Structural Scanner Transport Network Coupler Light Armor Plating Light Armor Plating Improved Light Cannon Improved Light Cannon Mining Laser [Rating: 12] Favorites ----------- Power Light Ion Engine Engine Light Ion Engine Power Core Light Nuclear Core Propulsion Wheel Treads Light Treads Wheel Wheel Utility Medium Storage Unit Storage Medium Storage Unit Hackware Hacking Suite Protection Light Armor Plating Weapon Improved Light Cannon Energy Gun EM Pulse Gun Ballistic Gun Light Assault Rifle Ballistic Cannon Improved Light Cannon Special Weapon Mining Laser Build | -11 -10 -10 ------- Run | Yrd Mat Min Slots Evolved . | . . . Power . | . . . Propulsion . | . . . Utility . | . . . Weapon . | . . . Parts Attached 28 | 6 20 2 Power 4 | 1 2 1 Engine 3 | 1 2 . Core 1 | . . 1 Reactor . | . . . Propulsion 5 | 2 3 . Treads 2 | 1 1 . Leg . | . . . Wheel 3 | 1 2 . Hover . | . . . Flight . | . . . Utility 8 | 1 6 1 Device . | . . . Storage 5 | 1 4 . Processor . | . . . Hackware 1 | . 1 . Protection 2 | . 1 1 Artifact . | . . . Weapon 11 | 2 9 . Energy Gun 3 | 2 1 . Energy Cannon . | . . . Ballistic Gun 4 | . 4 . Ballistic Cannon 3 | . 3 . Launcher . | . . . Special Weapon 1 | . 1 . Impact Weapon . | . . . Slashing Weapon . | . . . Piercing Weapon . | . . . Special Melee Weapon . | . . . Unidentified Prototypes . | . . . Parts Lost 1 | . 1 . Power . | . . . Propulsion . | . . . Utility . | . . . Weapon 1 | . 1 . Highest Loss Streak 1 | . 1 . To Critical Strikes . | . . . Average Slot Usage (%) 99 | . 99 100 Engine 10 | . 14 1 Core 3 | . . 12 Treads 9 | . 13 . Wheel 18 | . 14 28 Storage 22 | . 25 14 Hackware 1 | . 1 . Protection 4 | . . 13 Energy Gun 5 | . 6 . Ballistic Gun 3 | . 4 . Ballistic Cannon 19 | . 16 28 Naked Turns . | . . . Heaviest Build 26 | 14 24 26 Greatest Support 26 | 10 26 26 Greatest Overweight (x) 2 | 1 2 . Average Overweight (x) . | . 1 . Largest Inventory Capacity 25 | 8 25 10 Average Capacity 9 | 6 9 10 Most Carried 10 | 4 10 10 Average Carried 8 | 2 8 9 Final Capacity 10 | 8 10 10 Final Carried 10 | 4 10 10 Class Distribution -------------------- 100% | Mutant Dominant Class ---------------- Mutant | -10/Materials Mutant | -10/Mines Resources | -11 -10 -10 ----------- Run | Yrd Mat Min Matter Collected 1245 | 260 784 201 Remotely . | . . . Salvage Created 947 | 71 735 141 Parts 62 | 2 51 9 Haulers Intercepted 2 | . 2 . Recyclers Shooed 2 | . 2 . Parts Field Recycled . | . . . Retrieved Matter . | . . . Parts Self-Destructed . | . . . Prevented . | . . . Kills | -11 -10 -10 ------- Run | Yrd Mat Min Combat Hostiles Destroyed 19 | . 13 6 Guns 9 | . 9 . Cannons 10 | . 4 6 Classes Destroyed 7 | 1 6 . Worker 1 | . 1 . Builder 1 | . 1 . Hauler 2 | . 2 . Recycler 3 | 1 2 . Operator 2 | . 2 . Swarmer 5 | . 3 2 Grunt 14 | . 10 4 Best Kill Streak 4 | 1 4 2 Combat Bots Only 3 | . 3 2 Max Kills in Single Turn 1 | 1 1 1 Gunslinging . | . . . Exploded . | . . . Melee . | . . . Uniques/NPCs Destroyed . | . . . Combat | -11 -10 -10 -------- Run | Yrd Mat Min Hostile Shots Fired 108 | . 73 35 Missed 22 | . 17 5 Damage Taken 960 | . 638 322 Core 253 | . 126 127 Absorbed by Shields . | . . . Core Remaining (%) 100 | 100 . . Volleys Fired 94 | 2 77 15 Largest 2 | 2 2 2 Hottest 100 | 80 100 78 Shots Fired 184 | 4 150 30 Gun 93 | 4 89 . Cannon 88 | . 58 30 Launcher . | . . . Special 3 | . 3 . Kinetic 124 | . 94 30 Thermal 3 | . 3 . Explosive . | . . . Electromagnetic 57 | 4 53 . Robot Hit Streak 5 | 3 5 5 Robot Miss Streak 5 | 1 5 2 Penetration Max . | . . . Secondary Targets . | . . . Shots Hit Robots 91 | 3 69 19 Core Hits 38 | 2 28 8 Critical Kills . | . . . Critical Parts Destroyed . | . . . Critical Strikes 3 | . 3 . Blast 1 | . 1 . Corrupt 2 | . 2 . Melee Attacks . | . . . Impact . | . . . Slashing . | . . . Piercing . | . . . Sneak Attacks . | . . . Combat Hostiles . | . . . Follow-up Attacks . | . . . Damage Inflicted 1589 | 83 1077 429 Guns 614 | 37 577 . Cannons 929 | . 500 429 Explosions 46 | 46 . . Melee . | . . . Ramming . | . . . Kinetic 1118 | . 689 429 Thermal 46 | 46 . . Explosive . | . . . Electromagnetic 425 | 37 388 . Impact . | . . . Slashing . | . . . Piercing . | . . . Highest Corruption . | . . . Average Corruption . | . . . Corruption Purged . | . . . Corruption Blocked . | . . . Overload Shots . | . . . Overflow Damage 40 | . 16 24 Projectiles 40 | . 16 24 Explosions . | . . . Melee . | . . . Knockbacks 7 | . 3 4 Impact . | . . . Kinetic 6 | . 3 3 Secondary 1 | . . 1 Self-Inflicted Damage . | . . . Shots . | . . . Rammed . | . . . Targets Rammed . | . . . Kicked . | . . . Crushed . | . . . Highest Temperature 258 | 36 258 227 Average Temperature 77 | 20 71 100 Received Heat Transfer 393 | . 267 126 Effects 1 | . 1 . Interference 1 | . 1 . Siege Activations . | . . . Robots Corrupted . | . . . Combat Hostiles . | . . . Parts Fried 2 | . 2 . Impact Corruptions 1 | . . 1 Robots Melted . | . . . Combat Hostiles . | . . . Parts Melted . | . . . Heat Transferred . | . . . Parts Sabotaged . | . . . Parts Stolen . | . . . Parts Stripped . | . . . Power Chain Reactions 1 | 1 . . Alert | -11 -10 -10 ------- Run | Yrd Mat Min Peak Influence 275 | 5 275 192 Initial 23 | . 3 23 Average 113 | 1 104 160 Maximum Alert Level 1 | . 1 . Low Security (%) 92 | 100 89 100 Level 1 7 | . 10 . Level 2 . | . . . Level 3 . | . . . Level 4 . | . . . Level 5 . | . . . High Security . | . . . Max Security . | . . . Squads Dispatched 2 | . 2 . Investigation 1 | . 1 . Extermination . | . . . Reinforcement 1 | . 1 . Assault . | . . . Garrison . | . . . Intercept . | . . . Searches Triggered . | . . . Construction Impeded . | . . . Haulers Reinforced . | . . . Active Scanning Responses . | . . . Cargo Convoy Interrupts . | . . . Stealth | -11 -10 -10 --------- Run | Yrd Mat Min Distress Signals . | . . . Communications Jammed . | . . . Distress Signals . | . . . Times Spotted 28 | . 20 8 Peak Tracking Total 4 | . 4 3 Tactical Retreats 1 | . 1 . Traps | -11 -10 -10 ------- Run | Yrd Mat Min Traps Triggered 2 | . 2 . Indirectly . | . . . Trap Hack Attempts . | . . . Triggered . | . . . Disarmed . | . . . Reprogrammed . | . . . Reused . | . . . Traps Extracted . | . . . Installed . | . . . Triggered . | . . . Machines | -11 -10 -10 ---------- Run | Yrd Mat Min Machines Disabled . | . . . Max in Single Turn . | . . . Machines Repaired . | . . . Machines Dismantled . | . . . Machines Sabotaged . | . . . Overloaded Fab Kills . | . . . Hacking | -11 -10 -10 --------- Run | Yrd Mat Min Machines Accessed 5 | . 5 . Terminals 4 | . 4 . Fabricators . | . . . Repair Stations . | . . . Recycling Units 1 | . 1 . Scanalyzers . | . . . Garrison Access . | . . . Total Hacks 11 | . 11 . Successful 6 | . 6 . Failed 5 | . 5 . Catastrophic 2 | . 2 . Database Lockouts . | . . . Manual 9 | . 9 . Terminals 9 | . 9 . Fabricators . | . . . Repair Stations . | . . . Recycling Units 2 | . 2 . Scanalyzers . | . . . Garrison Access . | . . . Terminal Hacks 4 | . 4 . Part Schematic 1 | . 1 . Prototype ID Bank 1 | . 1 . Branch Access Points 1 | . 1 . Terminal Index 1 | . 1 . Fabricator Hacks . | . . . Repair Station Hacks . | . . . Recycling Unit Hacks 2 | . 2 . Report Inventory 1 | . 1 . Retrieve Components 1 | . 1 . Scanalyzer . | . . . Garrison Access Hacks . | . . . Unauthorized Hacks . | . . . Terminals . | . . . Fabricators . | . . . Repair Stations . | . . . Recycling Units . | . . . Scanalyzers . | . . . Garrison Access . | . . . Data Cores Recovered . | . . . Used . | . . . Hacking Detections 3 | . 3 . Full Trace Events 2 | . 2 . Feedback Events . | . . . Feedback Blocked . | . . . Robot Schematics Acquired . | . . . Robots Built . | . . . Authchips . | . . . Time . | . . . Total Robot Build Rating . | . . . Part Schematics Acquired 1 | . 1 . Parts Built . | . . . Authchips . | . . . Time . | . . . Total Part Build Rating . | . . . Parts Repaired . | . . . Time . | . . . Parts Recycled . | . . . Recycled Matter . | . . . Retrieved Matter . | . . . Retrieved Components 1 | . 1 . Parts Scanalyzed . | . . . Part Schematics Acquired . | . . . Parts Damaged . | . . . Bothacking | -11 -10 -10 ------------ Run | Yrd Mat Min Used RIF Installer . | . . . Robots Hacked . | . . . Non-combat . | . . . Combat . | . . . Robot Hacks Applied . | . . . Relay Couplers Released . | . . . Fabnet Peak Effective % . | . . . Robots Rewired . | . . . Allies Hacked . | . . . Hacks Repelled . | . . . Allies | -11 -10 -10 -------- Run | Yrd Mat Min Total Allies . | . . . Largest Group . | . . . Highest-Rated Group . | . . . Highest-Rated Ally . | . . . Total Orders . | . . . Ally Attacks . | . . . Total Damage . | . . . Kills . | . . . Allies Corrupted . | . . . Allies Melted . | . . . Intel | -11 -10 -10 ------- Run | Yrd Mat Min Robot Analysis Total . | . . . Derelict Logs Recovered 1 | . . 1 Drone Launches . | . . . Drone Recoveries . | . . . Exploration | -11 -10 -10 ------------- Run | Yrd Mat Min Turns Passed 1283 | 58 909 316 Spaces Moved 871 | 45 541 285 Core 1 | 1 . . Treads 6 | . 6 . Legs . | . . . Wheels 864 | 44 535 285 Hover . | . . . Flight . | . . . Fastest Speed 50 | 50 90 90 Average Speed 98 | 88 103 90 Slowest Speed 240 | 95 240 90 Overloaded Moves . | . . . Propulsion Burnouts . | . . . Robots Hopped . | . . . Cave-ins Triggered . | . . . Exploration Rate (%) 52 | 4 89 65 Regions Visited 2 Branch Regions 1 Pre-discovered Areas . | . . . Known Exits Taken 1 | . 1 . Unknown Exits Taken 1 | 1 . . Scrap Searched 1 | . . 1 Spaces Dug 4 | . 4 . Terrain Destroyed 13 | . 9 4 Melee . | . . . Projectile 13 | . 9 4 AOE . | . . . Terrain Rammed . | . . . Walls Destroyed . | . . . Machines Disabled . | . . . Actions | -11 -10 -10 --------- Run | Yrd Mat Min Total 1108 | 56 739 313 Wait 78 | . 67 11 Move 869 | 44 540 285 Hop . | . . . Pick Up 21 | 4 17 . Fast Attach 9 | 6 3 . Attach 2 | . 2 . Detach 1 | . 1 . Swap 17 | . 15 2 Drop 17 | . 17 . Fire 94 | 2 77 15 Melee . | . . . Ram . | . . . Kick . | . . . Crush . | . . . Escape Stasis . | . . . Rewire . | . . . Trap . | . . . Miscellaneous . | . . . Route ------- -11/Scrapyard -10/Materials (discovered 5 exits: [*Mat x3] / *Min x2) -10/Mines (discovered 1 exit: [*Mat]) History --------- Turn | Location | Event 8 | -11/Scrapyard | Discovered new exit (range 15) 59 | -11/Scrapyard | Entered Materials 178 | -10/Materials | Discovered new exit (range 5) 336 | -10/Materials | Build established: Mutant 440 | -10/Materials | Discovered new exit (range 10) 484 | -10/Materials | Discovered new exit (range 6) 602 | -10/Materials | Discovered new exit (range 9) 605 | -10/Materials | Identified exit to Mines 811 | -10/Materials | Core integrity fell below 50% 968 | -10/Materials | Entered Mines 979 | -10/Mines | Core integrity fell below 20% 1026 | -10/Mines | Found a damaged Exp. Sensor Array with a note attached 1234 | -10/Mines | Discovered new exit (range 11) 1235 | -10/Mines | Learned Materials emergency access door positions 1284 | -10/Mines | Destroyed by G-34 Mercenary with Small Laser Last Messages --------------- 01051_ Acquired 3 matter. 01053_ Acquired 4 matter. 01054_ Acquired 5 matter. 01072_ K-01 Serf collects debris. 01075_ G-47 Trooper destroyed. 01078_ G-34 Mercenary destroyed. 01081_ Acquired 27 matter. 01082_ Acquired 4 matter. 01083_ U-05 Engineer builds a Wall. 01084_ Acquired 32 matter. 01085_ R-06 Scavenger collects Aluminum Leg. 01103_ K-01 Serf collects debris. 01155_ Searching scrap... 01155_ Found ECM Suite. 01155_ Found 15 Matter. 01156_ Acquired 7 matter. 01160_ T-07 Excavator is excavating. 01234_ EXIT=FOUND 01235_ Acquired derelict log, extracted data. Data stored: Materials emergency access points. Map ----- +----------------------------------------------------+ | | | | | | | | | | | | | | | | | | | | | | | | | | | ??????????????????????????????????????????? | | ??????????????????????????????????????????? | | ??????????????????????????????????????????? | | ??????????????####?####???????????????????? | | ?????????????## ### ######??????????????? | | ?????????????# ####???????????? | | ????????????## ##??????????? | | ??????????### """ #??????????? | | ?????????## ## """ #??????????? | | ????????## #### """ ### ##??????????? | | ????##### ##??## #?####???????????? | | ???## ####### ##????????????????? | | ??## @### ##?????????????????? | | ??# ### #?###??????????????????? | | ??# #?# #??????????????????????? | | ??# < ### ##?# #??????????????????????? | | ??## ##?## #??# #??????????????????????? | | ???# ##### #??# ??????????????????????? | | ??## #??# #??????????????????????? | | ??# ##### #??????????????????????? | | ??# ##???###??# #??????????????????????? | | ??# ##?????????? ???????????????????????? | | ??# ##??????????? ???????????????????????? | | ??# #????????????g???????????????????????? | | ??# #???????????? ???????????????????????? | | ??# ####????????? ???????????????????????? | | ??# #????????? ???????????????????????? | | ??# #????????? ???????????????????????? | | ??#### #?????????????????????????????????? | | ?????# #?????????????????????????????????? | | ?????# #####?????????????????????????????? | | ?????# #?????????????????????????????? | | ?????##### #?????????????????????????????? | | ????????## ###????????????????##?????????? | | ???????## ###########????? ?????????? | | ???????# """ #?#### #?????????? | | ???????# """ ######## #?# ? #?????????? | +----------------------------------------------------+ Best States ------------- Heat Dissipation 25 Energy Generation 14 Energy Capacity 250 Matter Stores 450 Matter Capacity 450 Sight Range 16 Terrain Scan Density 10 Armor Coverage 150 Evasion (%) 44 Recoil Reduction 1 Offensive Hacking 10 Item Schematics ----------------- Assault Rifle | -10/Materials | Hacked Robot Schematics ------------------ None Fabricated ------------ Nothing Alien Tech Used ----------------- None Achievements -------------- None Challenges ------------ None Game ------ Seed CryofiberRiotClaw Manual? 0 Play Time 00:37:06 Cumulative 16.3 hours Start 2024.06.13 @ 00:21:51 End 2024.06.13 @ 00:58:23 Sessions 1 Manual Loads 0 Difficulty Rogue Special Mode None Game No. 9 Rogue 9 Adventurer 0 Explorer 0 Win Type - Total 0 Types 0/0/0/0/0/0/0/0/0 Lore% 16 Gallery% 16 Achievement% 15 Wizard Run 0 Options --------- Layout 0 ASCII 0 Keyboard 1 Movement Numpad Keybinds 0 Fullscreen 2 Font 18/SmallcapsGlow Map View 76x50 Zoom Use 0% Tactical HUD 1 Map Filters NONE Filters NONE Steam 1 RUN: 18b80e8f-299c-40a5-a8fc-e107b95ce76e